fUST/lending_fUST_20260613
["ID","MTS","AMOUNT","RATE_DAILY","PERIOD"]
[424936413,1781301040000,-355.53707116,0.00025151,2]
[424936401,1781301040000,-790.75545204,0.00025151,2]
[424936414,1781301040000,-656.9341522,0.00025151,2]
[424936400,1781301040000,-656.38711639,0.00025151,2]
[424936392,1781301040000,-351.46970912,0.00025151,2]
[424936363,1781301040000,-657.00638121,0.00025142,2]
[424936354,1781301040000,-222.77,0.00025141,3]
[424936358,1781301040000,-810.30217791,0.00025142,2]
[424936361,1781301040000,-408.29303358,0.00025142,2]
[424936373,1781301040000,-189.32725264,0.00025142,2]
[424936367,1781301040000,-487.41563333,0.00025142,2]
[424936370,1781301040000,-489.1496433,0.00025142,2]
[424936365,1781301040000,-467.32210963,0.00025142,2]
[424936372,1781301040000,-857.97817057,0.00025142,2]
[424936369,1781301040000,-160.28257977,0.00025142,2]
[424936374,1781301040000,-174.5883091,0.00025142,2]
[424936423,1781301040000,-452.35391956,0.00025151,2]
[424936386,1781301040000,-620.96365147,0.00025151,2]
[424936387,1781301040000,-200.03283849,0.00025151,2]
[424936360,1781301040000,-355.8406003,0.00025142,2]
[424936384,1781301040000,-432.25266775,0.00025151,2]
[424936383,1781301040000,-928.03,0.0002515,2]
[424936378,1781301040000,-1306.09,0.0002515,2]
[424936388,1781301040000,-369.69225095,0.00025151,2]
[424936381,1781301040000,-928.03,0.0002515,2]
[424936380,1781301040000,-1306.09,0.0002515,2]
[424936377,1781301040000,-500.0,0.0002515,2]
[424936375,1781301040000,-500.0,0.0002515,2]
[424936385,1781301040000,-459.45501728,0.00025151,2]
[424936379,1781301040000,-1306.09,0.0002515,2]
[424936382,1781301040000,-928.03,0.0002515,2]
[424936390,1781301040000,-591.25982572,0.00025151,2]
[424936389,1781301040000,-334.61019429,0.00025151,2]
[424936402,1781301040000,-283.88950985,0.00025151,2]
[424936467,1781301041000,-776.67747399,0.00025175,2]
[424936470,1781301041000,-682.63271033,0.00025182,2]
[424936458,1781301041000,-204.75832416,0.00025175,2]
[424936471,1781301041000,-176.60128624,0.00025182,2]
[424936473,1781301041000,-309.38,0.00025205,2]
[424936461,1781301041000,-371.51984072,0.00025175,2]
[424936459,1781301041000,-303.9319266,0.00025175,2]
[424936464,1781301041000,-383.40835739,0.00025175,2]
[424936463,1781301041000,-466.84719943,0.00025175,2]
[424936465,1781301041000,-725.96527474,0.00025175,2]
[424936456,1781301041000,-741.95961444,0.00025175,2]
[424936454,1781301041000,-454.50181186,0.00025175,2]
[424936472,1781301041000,-156.52264942,0.00025182,2]
[424936462,1781301041000,-714.40892297,0.00025175,2]
[424936469,1781301041000,-324.71662879,0.00025182,2]
[424936480,1781301041000,-151.0,0.00025444,2]
[424936468,1781301041000,-612.60668971,0.00025175,2]
[424936477,1781301041000,-222.440324,0.00025444,2]
[424936474,1781301041000,-563838.8257,0.00025444,2]
[424936478,1781301041000,-222.440324,0.00025444,2]
[424936475,1781301041000,-222.440324,0.00025444,2]
[424936488,1781301041000,-1001.86825959,0.00025528,2]
[424936489,1781301041000,-784.63356227,0.00025528,2]
[424936491,1781301041000,-839.38788302,0.00025528,2]
[424936490,1781301041000,-885.97491726,0.00025528,2]
[424936481,1781301041000,-151.0,0.00025444,2]
[424936482,1781301041000,-151.0,0.00025444,2]
[424936479,1781301041000,-151.0,0.00025444,2]
[424936487,1781301041000,-820.48389548,0.00025528,2]
[424936476,1781301041000,-222.440324,0.00025444,2]
[424936460,1781301041000,-469.95600808,0.00025175,2]
[424936427,1781301041000,-637.13700988,0.00025151,2]
[424936466,1781301041000,-160.31916202,0.00025175,2]
[424936485,1781301041000,-309.38,0.00025479,2]
[424936426,1781301041000,-152.25925143,0.00025151,2]
[424936425,1781301041000,-393.47914913,0.00025151,2]
[424936429,1781301041000,-635.25185735,0.00025151,2]
[424936432,1781301041000,-571.43201477,0.00025151,2]
[424936431,1781301041000,-167.94524486,0.00025151,2]
[424936433,1781301041000,-573.99822982,0.00025151,2]
[424936430,1781301041000,-696.62979026,0.00025151,2]
[424936438,1781301041000,-223.97495198,0.00025151,2]
[424936437,1781301041000,-562.51865516,0.00025151,2]
[424936440,1781301041000,-726.95466568,0.00025151,2]
[424936439,1781301041000,-467.88260258,0.00025151,2]
[424936434,1781301041000,-625.51649025,0.00025151,2]
[424936436,1781301041000,-540.63758589,0.00025151,2]
[424936435,1781301041000,-473.31536505,0.00025151,2]
[424936441,1781301041000,-479.63786002,0.00025151,2]
[424936442,1781301041000,-876.00850828,0.00025151,2]
[424936452,1781301041000,-187.74509805,0.00025175,2]
[424936444,1781301041000,-675.08325997,0.00025151,2]
[424936453,1781301041000,-162.42677565,0.00025175,2]
[424936447,1781301041000,-158.46468077,0.00025151,2]
[424936443,1781301041000,-612.43955037,0.00025151,2]
[424936448,1781301041000,-208.34094904,0.00025151,2]
[424936450,1781301041000,-612.35933237,0.00025151,2]
[424936445,1781301041000,-444.81850575,0.00025151,2]
[424936451,1781301041000,-595.88116859,0.00025175,2]
[424936446,1781301041000,-617.93181002,0.00025151,2]
[424936449,1781301041000,-616.38037607,0.00025151,2]
[424936455,1781301041000,-910.93913943,0.00025175,2]
[424936457,1781301041000,-158.84648094,0.00025175,2]
[424936484,1781301041000,-469.51588288,0.00025474,2]
[424936428,1781301041000,-696.13717864,0.00025151,2]
[424936486,1781301041000,-280.78012061,0.00025527,2]
[424936526,1781301041000,-256.74504013,0.00026205,2]
[424936523,1781301041000,-151.0,0.000261,20]
[424936522,1781301041000,-985.4012283,0.00026094,2]
[424936525,1781301041000,-720.0,0.00026198,30]
[424936528,1781301041000,-469.51588288,0.00026283,2]
[424936524,1781301041000,-1366.40870915,0.00026119,2]
[424936531,1781301041000,-151.0,0.000264,17]
[424936533,1781301041000,-221.667899,0.00026428,14]
[424936545,1781301041000,-1132.37,0.00026597,2]
[424936543,1781301041000,-928.03,0.00026596,2]
[424936534,1781301041000,-152.0,0.00026458,7]
[424936535,1781301041000,-445.54,0.00026511,3]
[424936544,1781301041000,-1132.37,0.00026597,2]
[424936537,1781301041000,-309.38,0.00026575,2]
[424936540,1781301041000,-1306.09,0.00026596,2]
[424936539,1781301041000,-500.0,0.00026596,2]
[424936538,1781301041000,-500.0,0.00026596,2]
[424936536,1781301041000,-152.0,0.00026525,7]
[424936532,1781301041000,-229.79614819,0.00026423,2]
[424936541,1781301041000,-1306.09,0.00026596,2]
[424936542,1781301041000,-928.03,0.00026596,2]
[424936546,1781301041000,-1132.37,0.00026597,2]
[424936554,1781301041000,-1132.37,0.00026597,2]
[424936550,1781301041000,-1132.37,0.00026597,2]
[424936553,1781301041000,-1132.37,0.00026597,2]
[424936548,1781301041000,-1132.37,0.00026597,2]
[424936551,1781301041000,-1132.37,0.00026597,2]
[424936549,1781301041000,-1132.37,0.00026597,2]
[424936552,1781301041000,-1132.37,0.00026597,2]
[424936530,1781301041000,-309.38,0.00026301,2]
[424936527,1781301041000,-162.27799683,0.00026252,2]
[424936547,1781301041000,-1132.37,0.00026597,2]
[424936519,1781301041000,-984.58067458,0.00026094,2]
[424936529,1781301041000,-151.0,0.000263,16]
[424936492,1781301041000,-855.3420425,0.00025528,2]
[424936496,1781301041000,-870.1714733,0.00025528,2]
[424936498,1781301041000,-843.85407496,0.00025528,2]
[424936504,1781301041000,-970.84684249,0.00025552,2]
[424936501,1781301041000,-962.23383627,0.00025552,2]
[424936500,1781301041000,-1138.67392429,0.00025552,2]
[424936497,1781301041000,-908.6933321,0.00025528,2]
[424936502,1781301041000,-907.45659342,0.00025552,2]
[424936493,1781301041000,-821.16769025,0.00025528,2]
[424936503,1781301041000,-776.20456434,0.00025552,2]
[424936495,1781301041000,-794.06482169,0.00025528,2]
[424936494,1781301041000,-961.19964129,0.00025528,2]
[424936499,1781301041000,-765.44916546,0.00025528,2]
[424936506,1781301041000,-1306.09,0.00025599,2]
[424936483,1781301041000,-151.0,0.00025444,2]
[424936507,1781301041000,-928.03,0.00025599,2]
[424936517,1781301041000,-214.27897,0.00026065,14]
[424936518,1781301041000,-430.219833,0.00026065,14]
[424936520,1781301041000,-1063.16990071,0.00026094,2]
[424936512,1781301041000,-151.0,0.000258,20]
[424936515,1781301041000,-151.0,0.00026,20]
[424936511,1781301041000,-309.38,0.00025753,2]
[424936521,1781301041000,-1007.26545963,0.00026094,2]
[424936513,1781301041000,-161.17934053,0.00025839,2]
[424936509,1781301041000,-531.62,0.000256,3]
[424936505,1781301041000,-500.0,0.00025599,2]
[424936516,1781301041000,-309.38,0.00026027,2]
[424936514,1781301041000,-290.12281295,0.00025839,2]
[424936508,1781301041000,-532.4399,0.000256,5]
[424936510,1781301041000,-1305.990443,0.00025674,2]
[424936590,1781301042000,-1175.14303623,0.00026943,2]
[424936587,1781301042000,-1306.09,0.00026942,2]
[424936592,1781301042000,-1594.143494,0.00026968,2]
[424936586,1781301042000,-500.0,0.00026942,2]
[424936588,1781301042000,-928.03,0.00026942,2]
[424936594,1781301042000,-1306.09,0.00026999,2]
[424936593,1781301042000,-426.20071211,0.00026999,2]
[424936602,1781301042000,-1306.09,0.00026999,2]
[424936603,1781301042000,-1306.09,0.00026999,2]
[424936597,1781301042000,-1306.09,0.00026999,2]
[424936604,1781301042000,-1306.09,0.00026999,2]
[424936599,1781301042000,-1306.09,0.00026999,2]
[424936606,1781301042000,-1306.13948988,0.00026999,2]
[424936596,1781301042000,-1306.09,0.00026999,2]
[424936598,1781301042000,-1306.09,0.00026999,2]
[424936595,1781301042000,-1306.09,0.00026999,2]
[424936605,1781301042000,-1306.09,0.00026999,2]
[424936600,1781301042000,-1306.09,0.00026999,2]
[424936589,1781301042000,-1240.36488416,0.00026943,2]
[424936607,1781301042000,-928.03,0.00026999,2]
[424936608,1781301042000,-928.03,0.00026999,2]
[424936610,1781301042000,-928.03,0.00026999,2]
[424936609,1781301042000,-928.03,0.00026999,2]
[424936618,1781301042000,-928.03,0.00026999,2]
[424936617,1781301042000,-928.03,0.00026999,2]
[424936616,1781301042000,-928.03,0.00026999,2]
[424936613,1781301042000,-928.03,0.00026999,2]
[424936601,1781301042000,-1306.09,0.00026999,2]
[424936591,1781301042000,-151.0,0.00026943,2]
[424936577,1781301042000,-151.0,0.000266,11]
[424936584,1781301042000,-4221.3553312,0.000269,2]
[424936612,1781301042000,-928.03,0.00026999,2]
[424936555,1781301042000,-1132.37,0.00026597,2]
[424936556,1781301042000,-1132.37,0.00026597,2]
[424936559,1781301042000,-1132.37,0.00026597,2]
[424936558,1781301042000,-1132.37,0.00026597,2]
[424936557,1781301042000,-1132.37,0.00026597,2]
[424936561,1781301042000,-1132.37,0.00026597,2]
[424936564,1781301042000,-1132.37,0.00026597,2]
[424936565,1781301042000,-1132.37,0.00026597,2]
[424936566,1781301042000,-1132.37,0.00026597,2]
[424936563,1781301042000,-1132.37,0.00026597,2]
[424936560,1781301042000,-1132.37,0.00026597,2]
[424936562,1781301042000,-1132.37,0.00026597,2]
[424936581,1781301042000,-151.0,0.000267,12]
[424936568,1781301042000,-500.0,0.00026597,2]
[424936579,1781301042000,-190.34962631,0.000267,2]
[424936569,1781301042000,-501.57751087,0.00026597,2]
[424936570,1781301042000,-500.0,0.00026597,2]
[424936573,1781301042000,-500.0,0.00026597,2]
[424936571,1781301042000,-500.0,0.00026597,2]
[424936572,1781301042000,-500.0,0.00026597,2]
[424936574,1781301042000,-299.25382974,0.00026597,2]
[424936576,1781301042000,-460.0,0.00026598,2]
[424936575,1781301042000,-600.0,0.00026598,2]
[424936580,1781301042000,-4221.3553312,0.000267,2]
[424936582,1781301042000,-1305.990443,0.00026711,2]
[424936585,1781301042000,-151.0,0.000269,13]
[424936583,1781301042000,-309.38,0.00026849,2]
[424936567,1781301042000,-1132.41103297,0.00026597,2]
[424936578,1781301042000,-168.94243976,0.000267,2]
[424936614,1781301042000,-928.03,0.00026999,2]
[424936611,1781301042000,-928.03,0.00026999,2]
[424936650,1781301042000,-151.0,0.00027199,2]
[424936654,1781301042000,-151.0,0.000272,16]
[424936652,1781301042000,-151.84870158,0.00027199,2]
[424936656,1781301042000,-1159.43493928,0.00027253,2]
[424936651,1781301042000,-151.0,0.00027199,2]
[424936653,1781301042000,-4221.3553312,0.000272,2]
[424936655,1781301042000,-332.13,0.00027224,2]
[424936664,1781301042000,-778.208124,0.00027349,2]
[424936660,1781301042000,-151.0,0.000273,10]
[424936666,1781301042000,-778.208124,0.00027349,2]
[424936662,1781301042000,-151.0,0.00027349,2]
[424936669,1781301042000,-778.208124,0.00027349,2]
[424936661,1781301042000,-151.0,0.000273,11]
[424936649,1781301042000,-151.0,0.00027199,2]
[424936663,1781301042000,-151.0,0.00027349,2]
[424936670,1781301042000,-238.95872,0.00027349,2]
[424936675,1781301042000,-151.0,0.00027349,2]
[424936677,1781301042000,-151.0,0.00027349,2]
[424936672,1781301042000,-238.95872,0.00027349,2]
[424936673,1781301042000,-238.95872,0.00027349,2]
[424936679,1781301042000,-258.131899,0.00027368,14]
[424936678,1781301042000,-151.0,0.00027349,2]
[424936680,1781301042000,-417.15472785,0.0002739,2]
[424936682,1781301042000,-151.5,0.00027449,2]
[424936681,1781301042000,-309.4,0.00027397,2]
[424936683,1781301042000,-151.5,0.00027449,2]
[424936684,1781301042000,-187.69323223,0.00027449,2]
[424936615,1781301042000,-928.03,0.00026999,2]
[424936671,1781301042000,-238.95872,0.00027349,2]
[424936648,1781301042000,-151.0,0.00027199,2]
[424936667,1781301042000,-778.208124,0.00027349,2]
[424936657,1781301042000,-276.26117202,0.00027258,2]
[424936620,1781301042000,-151.0,0.00026999,2]
[424936646,1781301042000,-151.0,0.00027199,2]
[424936630,1781301042000,-469.51588288,0.00027091,2]
[424936631,1781301042000,-300.0,0.000271,2]
[424936623,1781301042000,-151.0,0.00027,10]
[424936621,1781301042000,-151.0,0.00026999,2]
[424936626,1781301042000,-778.208124,0.00027,2]
[424936619,1781301042000,-928.13066765,0.00026999,2]
[424936622,1781301042000,-151.0,0.00026999,2]
[424936627,1781301042000,-778.208124,0.00027,2]
[424936629,1781301042000,-778.208124,0.00027,2]
[424936628,1781301042000,-778.208124,0.00027,2]
[424936633,1781301042000,-309.38,0.00027123,2]
[424936635,1781301042000,-153.4784289,0.00027199,2]
[424936632,1781301042000,-607.9126,0.000271,2]
[424936625,1781301042000,-151.629954,0.00027,2]
[424936659,1781301042000,-151.0,0.000273,14]
[424936658,1781301042000,-151.0,0.000273,20]
[424936638,1781301042000,-222.440324,0.00027199,2]
[424936647,1781301042000,-151.0,0.00027199,2]
[424936637,1781301042000,-222.440324,0.00027199,2]
[424936642,1781301042000,-181.70078794,0.00027199,2]
[424936639,1781301042000,-222.440324,0.00027199,2]
[424936641,1781301042000,-151.0,0.00027199,2]
[424936645,1781301042000,-151.0,0.00027199,2]
[424936636,1781301042000,-270.44957226,0.00027199,2]
[424936643,1781301042000,-239.10160229,0.00027199,2]
[424936634,1781301042000,-776.0,0.00027199,2]
[424936644,1781301042000,-151.0,0.00027199,2]
[424936640,1781301042000,-222.440324,0.00027199,2]
[424936723,1781301043000,-500.0,0.00027449,2]
[424936729,1781301043000,-500.0,0.00027449,2]
[424936727,1781301043000,-500.0,0.00027449,2]
[424936728,1781301043000,-500.0,0.00027449,2]
[424936724,1781301043000,-500.0,0.00027449,2]
[424936732,1781301043000,-515.2581158,0.00027634,2]
[424936720,1781301043000,-151.5,0.00027449,2]
[424936722,1781301043000,-500.0,0.00027449,2]
[424936731,1781301043000,-4221.3553312,0.000275,2]
[424936721,1781301043000,-500.0,0.00027449,2]
[424936730,1781301043000,-277.71993064,0.00027449,2]
[424936726,1781301043000,-500.0,0.00027449,2]
[424936719,1781301043000,-151.5,0.00027449,2]
[424936725,1781301043000,-500.0,0.00027449,2]
[424936747,1781301043000,-151.0,0.00028,7]
[424936737,1781301043000,-243098.31080113,0.00028,2]
[424936739,1781301043000,-151.0,0.00028,7]
[424936738,1781301043000,-4221.3553312,0.00028,2]
[424936744,1781301043000,-151.0,0.00028,7]
[424936746,1781301043000,-151.0,0.00028,7]
[424936745,1781301043000,-151.0,0.00028,7]
[424936733,1781301043000,-4221.3553312,0.000277,2]
[424936735,1781301043000,-543.52924168,0.00027796,2]
[424936740,1781301043000,-778.208124,0.00028,7]
[424936736,1781301043000,-469.51588288,0.000279,2]
[424936743,1781301043000,-778.208124,0.00028,7]
[424936742,1781301043000,-778.208124,0.00028,7]
[424936741,1781301043000,-778.208124,0.00028,7]
[424936710,1781301043000,-955.0,0.00027449,2]
[424936734,1781301043000,-1305.990443,0.00027749,2]
[424936713,1781301043000,-958.41891587,0.00027449,2]
[424936689,1781301043000,-205.81214097,0.00027449,2]
[424936709,1781301043000,-955.0,0.00027449,2]
[424936691,1781301043000,-955.0,0.00027449,2]
[424936690,1781301043000,-955.0,0.00027449,2]
[424936686,1781301043000,-151.0,0.00027449,7]
[424936685,1781301043000,-151.0,0.00027449,7]
[424936749,1781301043000,-238.95872,0.00028,7]
[424936688,1781301043000,-151.0,0.00027449,7]
[424936687,1781301043000,-151.0,0.00027449,7]
[424936693,1781301043000,-955.0,0.00027449,2]
[424936704,1781301043000,-955.0,0.00027449,2]
[424936703,1781301043000,-955.0,0.00027449,2]
[424936694,1781301043000,-955.0,0.00027449,2]
[424936696,1781301043000,-955.0,0.00027449,2]
[424936695,1781301043000,-955.0,0.00027449,2]
[424936701,1781301043000,-955.0,0.00027449,2]
[424936714,1781301043000,-292.52238375,0.00027449,2]
[424936697,1781301043000,-955.0,0.00027449,2]
[424936700,1781301043000,-955.0,0.00027449,2]
[424936702,1781301043000,-955.0,0.00027449,2]
[424936698,1781301043000,-955.0,0.00027449,2]
[424936699,1781301043000,-955.0,0.00027449,2]
[424936706,1781301043000,-955.0,0.00027449,2]
[424936717,1781301043000,-349.70006729,0.00027449,2]
[424936716,1781301043000,-500.0,0.00027449,2]
[424936718,1781301043000,-151.5,0.00027449,2]
[424936705,1781301043000,-955.0,0.00027449,2]
[424936715,1781301043000,-151.0,0.00027449,7]
[424936707,1781301043000,-955.0,0.00027449,2]
[424936708,1781301043000,-955.0,0.00027449,2]
[424936711,1781301043000,-955.0,0.00027449,2]
[424936712,1781301043000,-955.0,0.00027449,2]
[424936692,1781301043000,-955.0,0.00027449,2]
[424936750,1781301043000,-238.95872,0.00028,7]
[424936811,1781301043000,-151.0,0.00032876,7]
[424936755,1781301043000,-222.440324,0.00028,7]
[424936782,1781301043000,-2209.0,0.00029326,2]
[424936789,1781301043000,-462.14107223,0.00029961,2]
[424936786,1781301043000,-560.34914058,0.00029758,2]
[424936785,1781301043000,-560.34914058,0.00029648,2]
[424936787,1781301043000,-1305.990443,0.00029823,2]
[424936784,1781301043000,-3620.0,0.00029326,2]
[424936788,1781301043000,-2000.0,0.00029824,7]
[424936790,1781301043000,-768.91038747,0.0003,120]
[424936792,1781301043000,-1505.40401421,0.00030126,2]
[424936791,1781301043000,-533.62789729,0.00030011,2]
[424936800,1781301043000,-284.607,0.00031029,2]
[424936796,1781301043000,-150.293,0.00031029,2]
[424936798,1781301043000,-247.24,0.00031029,2]
[424936797,1781301043000,-249.07,0.00031029,2]
[424936807,1781301043000,-778.208124,0.00032876,7]
[424936808,1781301043000,-778.208124,0.00032876,7]
[424936801,1781301043000,-490.63984151,0.00031512,2]
[424936802,1781301043000,-1000.0,0.000317,30]
[424936803,1781301043000,-2207.0,0.00032326,2]
[424936806,1781301043000,-778.208124,0.00032876,7]
[424936805,1781301043000,-3620.0,0.00032326,2]
[424936804,1781301043000,-444.0,0.00032326,2]
[424936809,1781301043000,-778.208124,0.00032876,7]
[424936810,1781301043000,-151.0,0.00032876,7]
[424936815,1781301043000,-238.95872,0.00032876,7]
[424936812,1781301043000,-151.0,0.00032876,7]
[424936813,1781301043000,-151.0,0.00032876,7]
[424936814,1781301043000,-238.95872,0.00032876,7]
[424936748,1781301043000,-238.95872,0.00028,7]
[424936793,1781301043000,-430.38288412,0.00030139,2]
[424936795,1781301043000,-796.0,0.000302,2]
[424936799,1781301043000,-150.904,0.00031029,2]
[424936783,1781301043000,-459.022,0.00029326,2]
[424936757,1781301043000,-222.440324,0.00028,7]
[424936794,1781301043000,-2049.61306372,0.00030155,2]
[424936752,1781301043000,-151.0,0.00028,7]
[424936756,1781301043000,-222.440324,0.00028,7]
[424936751,1781301043000,-238.95872,0.00028,7]
[424936759,1781301043000,-151.0,0.00028,7]
[424936754,1781301043000,-151.0,0.00028,7]
[424936753,1781301043000,-151.0,0.00028,7]
[424936758,1781301043000,-222.440324,0.00028,7]
[424936774,1781301043000,-4221.3553312,0.000289,2]
[424936760,1781301043000,-151.0,0.00028,7]
[424936776,1781301043000,-543.52924168,0.00028924,2]
[424936766,1781301043000,-1821.87827886,0.00028243,2]
[424936780,1781301043000,-4221.3553312,0.000292,2]
[424936761,1781301043000,-151.0,0.00028,7]
[424936762,1781301043000,-281.55618,0.00028,7]
[424936767,1781301043000,-4221.3553312,0.000283,2]
[424936768,1781301043000,-993.74168875,0.00028342,2]
[424936775,1781301043000,-543.52924168,0.00028918,2]
[424936765,1781301043000,-1343.02061284,0.00028216,2]
[424936764,1781301043000,-200.0,0.000281,2]
[424936769,1781301043000,-165.59332112,0.00028398,7]
[424936773,1781301043000,-864.0,0.00028818,30]
[424936777,1781301043000,-543.52924168,0.00028946,2]
[424936779,1781301043000,-543.52924168,0.00029167,2]
[424936771,1781301043000,-200.0,0.00028681,7]
[424936770,1781301043000,-4221.3553312,0.000286,2]
[424936781,1781301043000,-892.24128366,0.00029205,2]
[424936778,1781301043000,-296.52,0.000291,2]
[424936763,1781301043000,-242.178902,0.00028,7]
[424936772,1781301043000,-1305.990443,0.00028786,2]
[424936865,1781301044000,-222.440324,0.00034586,7]
[424936858,1781301044000,-238.95872,0.00034586,7]
[424936862,1781301044000,-222.440324,0.00034586,7]
[424936860,1781301044000,-151.0,0.00034586,7]
[424936861,1781301044000,-151.0,0.00034586,7]
[424936859,1781301044000,-151.0,0.00034586,7]
[424936853,1781301044000,-151.0,0.00034586,7]
[424936854,1781301044000,-180.578275,0.00034586,7]
[424936852,1781301044000,-151.0,0.00034586,7]
[424936855,1781301044000,-238.95872,0.00034586,7]
[424936856,1781301044000,-238.95872,0.00034586,7]
[424936857,1781301044000,-238.95872,0.00034586,7]
[424936877,1781301044000,-1784.3,0.00035,120]
[424936863,1781301044000,-222.440324,0.00034586,7]
[424936875,1781301044000,-161.47579,0.00034904,120]
[424936882,1781301044000,-222.440324,0.00035,7]
[424936874,1781301044000,-322.951581,0.00034904,120]
[424936868,1781301044000,-151.0,0.00034586,7]
[424936869,1781301044000,-161.76,0.0003466,30]
[424936864,1781301044000,-222.440324,0.00034586,7]
[424936866,1781301044000,-151.0,0.00034586,7]
[424936867,1781301044000,-151.0,0.00034586,7]
[424936873,1781301044000,-244.0,0.0003487,30]
[424936871,1781301044000,-371.65557241,0.00034813,2]
[424936870,1781301044000,-446.39417146,0.00034779,2]
[424936872,1781301044000,-1000.0,0.0003487,30]
[424936878,1781301044000,-292.60068193,0.00035,2]
[424936880,1781301044000,-222.440324,0.00035,7]
[424936883,1781301044000,-222.440314,0.00035,7]
[424936851,1781301044000,-151.0,0.00034586,7]
[424936876,1781301044000,-4999.99999901,0.00035,2]
[424936843,1781301044000,-22222.0,0.00034586,5]
[424936822,1781301044000,-1668.23138934,0.00033022,2]
[424936848,1781301044000,-778.208124,0.00034586,7]
[424936821,1781301044000,-1980.0,0.00032876,120]
[424936823,1781301044000,-2277.34784858,0.00033022,2]
[424936816,1781301044000,-238.95872,0.00032876,7]
[424936817,1781301044000,-238.95872,0.00032876,7]
[424936820,1781301044000,-151.0,0.00032876,7]
[424936818,1781301044000,-151.0,0.00032876,7]
[424936819,1781301044000,-151.0,0.00032876,7]
[424936827,1781301044000,-820.76254428,0.00033717,2]
[424936826,1781301044000,-11869.67326345,0.0003366,4]
[424936836,1781301044000,-624.57576957,0.00033972,120]
[424936825,1781301044000,-1980.0,0.00033424,120]
[424936824,1781301044000,-168.52180269,0.00033171,2]
[424936835,1781301044000,-151.0,0.00033894,7]
[424936828,1781301044000,-161.44,0.00033834,30]
[424936837,1781301044000,-3117.0,0.00034,2]
[424936830,1781301044000,-232.187311,0.00033894,21]
[424936831,1781301044000,-205.589348,0.00033894,21]
[424936846,1781301044000,-153.000621,0.00034586,7]
[424936842,1781301044000,-22222.0,0.00034586,6]
[424936845,1781301044000,-17439.64509,0.00034586,3]
[424936844,1781301044000,-22222.0,0.00034586,4]
[424936841,1781301044000,-328.12622049,0.00034365,2]
[424936840,1781301044000,-161.54,0.00034106,30]
[424936847,1781301044000,-778.208124,0.00034586,7]
[424936849,1781301044000,-778.208124,0.00034586,7]
[424936850,1781301044000,-778.20813,0.00034586,7]
[424936839,1781301044000,-202.20524613,0.00034083,2]
[424936833,1781301044000,-164.218581,0.00033894,21]
[424936834,1781301044000,-151.0,0.00033894,7]
[424936829,1781301044000,-161.475791,0.00033894,21]
[424936832,1781301044000,-206.704189,0.00033894,21]
[424936838,1781301044000,-764.36000221,0.00034021,2]
[424936881,1781301044000,-222.440324,0.00035,7]
[424936888,1781301044000,-444.0,0.00035326,2]
[424936884,1781301044000,-213.471506,0.00035,7]
[424936933,1781301044000,-501.32591541,0.00035616,18]
[424936921,1781301044000,-500.0,0.00035616,18]
[424936932,1781301044000,-500.0,0.00035616,18]
[424936930,1781301044000,-622.31248885,0.00035616,18]
[424936922,1781301044000,-500.0,0.00035616,18]
[424936928,1781301044000,-555.4,0.00035616,18]
[424936929,1781301044000,-502.65310394,0.00035616,18]
[424936923,1781301044000,-500.0,0.00035616,18]
[424936919,1781301044000,-500.0,0.00035616,18]
[424936925,1781301044000,-500.0,0.00035616,18]
[424936926,1781301044000,-502.26056609,0.00035616,18]